fUST/lending_fUST_20241005
["ID","MTS","AMOUNT","RATE_DAILY","PERIOD"]
[339844792,1728058232042,-608.0,0.00010959,2]
[339844794,1728058232052,-161.327424,0.00012603,2]
[339844796,1728058232062,-3000.0,0.00012996,2]
[339844798,1728058232072,-300.0,0.00013183,2]
[339844800,1728058232081,-300.0,0.00013183,2]
[339844803,1728058232092,-6571.066365,0.00013184,2]
[339844805,1728058232109,-760.904,0.00013184,2]
[339844807,1728058232121,-1506.46197818,0.00013184,2]
[339844816,1728058232202,-433.90707799,0.00013184,2]
[339844979,1728058238052,-2351.71418294,0.00013184,2]
[339845028,1728058238492,-13275.94639589,0.00013184,2]
[339845030,1728058238501,-250.0,0.00013329,2]
[339845032,1728058238510,-188.4,0.000142,2]
[339845034,1728058238520,-420.0,0.00014454,2]
[339845036,1728058238529,-420.0,0.00014501,2]
[339845038,1728058238539,-434.232,0.00014849,2]
[339845040,1728058238549,-1000.0,0.00015,15]
[339845042,1728058238560,-500.0,0.00015,7]
[339845044,1728058238570,-500.0,0.00015,7]
[339845046,1728058238579,-490.58,0.00015,7]
[339845049,1728058238588,-824.8068711,0.00015178,2]
[339845051,1728058238597,-162.38816025,0.00015829,2]
[339845053,1728058238608,-6361.57131007,0.0001583,2]
[339845054,1728058238618,-587.0,0.00015849,2]
[339845056,1728058238631,-411.91815049,0.00015859,2]
[339845057,1728058238641,-30351.45016836,0.0001586,2]
[339845059,1728058238652,-433.66131729,0.0001587,2]
[339845060,1728058238662,-433.66131729,0.00015874,2]
[339845061,1728058238671,-433.66131729,0.00015879,2]
[339845062,1728058238681,-1142.3989507,0.00015881,2]
[339845063,1728058238690,-433.66131729,0.00015883,2]
[339845064,1728058238700,-433.66131729,0.00015887,2]
[339845065,1728058238711,-17489.6656164,0.0001589,2]
[339845066,1728058238722,-37279.0046526,0.0001589,2]
[339845067,1728058238733,-433.66131729,0.00015891,2]
[339845068,1728058238742,-433.66131729,0.00015896,2]
[339845069,1728058238751,-161.68292507,0.00015898,2]
[339845070,1728058238760,-500.0,0.00015898,2]
[339845071,1728058238770,-500.0,0.00015898,2]
[339845072,1728058238779,-281.0439044,0.00015898,2]
[339845073,1728058238789,-500.0,0.00015898,2]
[339845074,1728058238798,-500.0,0.00015898,2]
[339845075,1728058238808,-404.0513772,0.00015898,2]
[339845076,1728058238816,-500.0,0.00015898,2]
[339845077,1728058238826,-500.0,0.00015898,2]
[339845078,1728058238835,-500.0,0.00015898,2]
[339845079,1728058238844,-50202.0,0.000159,2]
[339845080,1728058238853,-181.265572,0.000159,2]
[339845081,1728058238862,-181.265572,0.000159,2]
[339845082,1728058238872,-151.0,0.000159,2]
[339845083,1728058238881,-151.0,0.000159,2]
[339845084,1728058238890,-151.0,0.000159,2]
[339845085,1728058238899,-151.0,0.000159,2]
[339845086,1728058238909,-402.954016,0.000159,2]
[339845087,1728058238918,-402.954016,0.000159,2]
[339845088,1728058238927,-1313.618755,0.000159,2]
[339845089,1728058238937,-151.0,0.000159,2]
[339845090,1728058238946,-1313.618755,0.000159,2]
[339845091,1728058238963,-433.66131729,0.000159,2]
[339845092,1728058238973,-151.0,0.000159,2]
[339845093,1728058238983,-168.84522498,0.0001593,2]
[339845094,1728058238993,-587.0,0.00015951,2]
[339845095,1728058239002,-37279.0046526,0.0001596,2]
[339845096,1728058239012,-181.265572,0.00015961,2]
[339845097,1728058239023,-181.265572,0.00015961,2]
[339845098,1728058239032,-151.0,0.00015961,2]
[339845099,1728058239041,-151.0,0.00015961,2]
[339845100,1728058239051,-151.0,0.00015961,2]
[339845101,1728058239061,-402.954016,0.00015961,2]
[339845102,1728058239071,-402.954016,0.00015961,2]
[339845103,1728058239082,-1313.618755,0.00015961,2]
[339845104,1728058239094,-151.0,0.00015961,2]
[339845105,1728058239104,-1313.618755,0.00015961,2]
[339845106,1728058239116,-151.0,0.00015961,2]
[339845107,1728058239125,-37279.0046526,0.0001597,2]
[339845108,1728058239137,-181.265572,0.0001597,2]
[339845109,1728058239146,-181.265572,0.0001597,2]
[339845110,1728058239155,-181.265572,0.0001597,2]
[339845111,1728058239165,-181.265572,0.0001597,2]
[339845112,1728058239175,-151.0,0.0001597,2]
[339845113,1728058239184,-151.0,0.0001597,2]
[339845114,1728058239193,-166.203801,0.0001597,2]
[339845115,1728058239202,-151.0,0.0001597,2]
[339845116,1728058239212,-151.0,0.0001597,2]
[339845117,1728058239224,-402.954016,0.0001597,2]
[339845118,1728058239233,-402.954016,0.0001597,2]
[339845119,1728058239242,-402.954016,0.0001597,2]
[339845120,1728058239252,-402.954016,0.0001597,2]
[339845121,1728058239261,-1313.618755,0.0001597,2]
[339845122,1728058239271,-1313.618755,0.0001597,2]
[339845123,1728058239280,-151.0,0.0001597,2]
[339845124,1728058239290,-151.0,0.0001597,2]
[339845125,1728058239299,-1313.618755,0.0001597,2]
[339845126,1728058239308,-1313.618755,0.0001597,2]
[339845127,1728058239318,-290.476222,0.0001597,2]
[339845128,1728058239327,-34569.05279555,0.0001597,2]
[339845129,1728058239337,-17489.6656164,0.0001597,2]
[339845130,1728058239346,-74558.0093052,0.0001597,2]
[339845131,1728058239355,-500.0,0.00015973,2]
[339845132,1728058239364,-515.09781353,0.00015973,2]
[339845133,1728058239373,-502.34411266,0.00015973,2]
[339845134,1728058239382,-500.0,0.00015973,2]
[339845135,1728058239392,-500.0,0.00015973,2]
[339845136,1728058239400,-181.265572,0.00015979,2]
[339845137,1728058239409,-181.265572,0.00015979,2]
[339845138,1728058239418,-151.0,0.00015979,2]
[339845139,1728058239427,-151.0,0.00015979,2]
[339845140,1728058239438,-402.954016,0.00015979,2]
[339845141,1728058239449,-402.954016,0.00015979,2]
[339845142,1728058239461,-1313.618755,0.00015979,2]
[339845143,1728058239473,-151.0,0.00015979,2]
[339845144,1728058239482,-1313.618755,0.00015979,2]
[339845145,1728058239492,-17489.6656164,0.0001598,2]
[339845146,1728058239503,-37279.0046526,0.0001598,2]
[339845147,1728058239512,-17489.6656164,0.0001598,2]
[339845149,1728058239522,-37279.0046526,0.0001598,2]
[339845150,1728058239532,-181.265572,0.0001598,2]
[339845151,1728058239542,-181.265572,0.0001598,2]
[339845152,1728058239554,-181.265572,0.0001598,2]
[339845153,1728058239564,-181.265572,0.0001598,2]
[339845154,1728058239574,-181.265572,0.0001598,2]
[339845155,1728058239583,-181.265572,0.0001598,2]
[339845156,1728058239592,-151.0,0.0001598,2]
[339845157,1728058239601,-151.0,0.0001598,2]
[339845158,1728058239611,-151.0,0.0001598,2]
[339845159,1728058239621,-151.0,0.0001598,2]
[339845161,1728058239631,-151.0,0.0001598,2]
[339845162,1728058239642,-151.0,0.0001598,2]
[339845163,1728058239652,-402.954016,0.0001598,2]
[339845164,1728058239661,-402.954016,0.0001598,2]
[339845165,1728058239672,-402.954016,0.0001598,2]
[339845166,1728058239682,-402.954016,0.0001598,2]
[339845167,1728058239691,-402.954016,0.0001598,2]
[339845168,1728058239700,-402.954016,0.0001598,2]
[339845169,1728058239709,-1313.618755,0.0001598,2]
[339845170,1728058239720,-1313.618755,0.0001598,2]
[339845171,1728058239729,-1313.618755,0.0001598,2]
[339845172,1728058239738,-151.0,0.0001598,2]
[339845173,1728058239747,-169.283904,0.0001598,2]
[339845174,1728058239756,-1313.618755,0.0001598,2]
[339845175,1728058239765,-1313.618755,0.0001598,2]
[339845176,1728058239774,-1313.618755,0.0001598,2]
[339845177,1728058239782,-28014.66106028,0.0001598,2]
[339845178,1728058239797,-41944.00140522,0.0001598,2]
[339845179,1728058239807,-332.99859478,0.0001598,2]
[339845180,1728058239818,-4119.10071634,0.0001598,2]
[339845181,1728058239833,-32826.90534148,0.0001598,2]
[339845183,1728058239842,-17489.6656164,0.0001598,2]
[339845185,1728058239852,-369.4772742,0.00015989,2]
[339845187,1728058239861,-1000.0,0.00015989,2]
[339845189,1728058239871,-403.99231516,0.00015989,2]
[339845190,1728058239882,-600.0,0.0001599,2]
[339845192,1728058239891,-151.0,0.0001599,2]
[339845193,1728058239902,-151.0,0.0001599,2]
[339845194,1728058239913,-151.0,0.0001599,2]
[339845195,1728058239925,-151.0,0.0001599,2]
[339845196,1728058239936,-151.0,0.0001599,2]
[339845197,1728058239947,-151.0,0.0001599,2]
[339845198,1728058239956,-151.0,0.0001599,2]
[339845199,1728058239966,-151.0,0.0001599,2]
[339845200,1728058239975,-151.0,0.0001599,2]
[339845201,1728058239984,-151.0,0.0001599,2]
[339845202,1728058239993,-151.0,0.0001599,2]
[339845204,1728058240002,-151.0,0.0001599,2]
[339845206,1728058240011,-151.0,0.0001599,2]
[339845208,1728058240022,-151.0,0.0001599,2]
[339845210,1728058240031,-151.0,0.0001599,2]
[339845230,1728058240209,-151.0,0.0001599,2]
[339845232,1728058240220,-151.0,0.0001599,2]
[339845234,1728058240229,-151.0,0.0001599,2]
[339845236,1728058240238,-151.0,0.0001599,2]
[339845238,1728058240247,-151.0,0.0001599,2]
[339845240,1728058240255,-151.0,0.0001599,2]
[339845242,1728058240265,-151.0,0.0001599,2]
[339845244,1728058240275,-151.0,0.0001599,2]
[339845246,1728058240285,-151.0,0.0001599,2]
[339845248,1728058240296,-151.0,0.0001599,2]
[339845250,1728058240308,-151.0,0.0001599,2]
[339845252,1728058240318,-151.0,0.0001599,2]
[339845255,1728058240329,-151.0,0.0001599,2]
[339845257,1728058240339,-151.0,0.0001599,2]
[339845259,1728058240349,-151.0,0.0001599,2]
[339845261,1728058240359,-151.0,0.0001599,2]
[339845263,1728058240370,-151.0,0.0001599,2]
[339845265,1728058240379,-151.0,0.0001599,2]
[339845267,1728058240390,-151.0,0.0001599,2]
[339845269,1728058240400,-735.417267,0.0001599,2]
[339845271,1728058240410,-735.417267,0.0001599,2]
[339845273,1728058240419,-735.417267,0.0001599,2]
[339845275,1728058240429,-735.417267,0.0001599,2]
[339845277,1728058240438,-151.0,0.0001599,2]
[339845279,1728058240448,-261.881944,0.0001599,2]
[339845281,1728058240457,-151.0,0.0001599,2]
[339845283,1728058240467,-151.0,0.0001599,2]
[339845285,1728058240476,-735.417267,0.0001599,2]
[339845287,1728058240485,-151.0,0.0001599,2]
[339845289,1728058240494,-735.417267,0.0001599,2]
[339845291,1728058240503,-735.417267,0.0001599,2]
[339845293,1728058240512,-735.417267,0.0001599,2]
[339845295,1728058240522,-151.0,0.0001599,2]
[339845297,1728058240531,-151.0,0.0001599,2]
[339845299,1728058240541,-151.0,0.0001599,2]
[339845301,1728058240551,-151.0,0.0001599,2]
[339845303,1728058240560,-151.0,0.0001599,2]
[339845305,1728058240570,-151.0,0.0001599,2]
[339845307,1728058240580,-151.0,0.0001599,2]
[339845309,1728058240591,-151.0,0.0001599,2]
[339845311,1728058240600,-151.0,0.0001599,2]
[339845313,1728058240610,-151.0,0.0001599,2]
[339845315,1728058240619,-151.0,0.0001599,2]
[339845317,1728058240630,-151.0,0.0001599,2]
[339845319,1728058240642,-151.0,0.0001599,2]
[339845322,1728058240654,-151.0,0.0001599,2]
[339845324,1728058240663,-151.0,0.0001599,2]
[339845326,1728058240673,-151.0,0.0001599,2]
[339845328,1728058240683,-151.0,0.0001599,2]
[339845330,1728058240694,-151.0,0.0001599,2]
[339845332,1728058240704,-151.0,0.0001599,2]
[339845334,1728058240714,-151.0,0.0001599,2]
[339845336,1728058240725,-151.0,0.0001599,2]
[339845338,1728058240734,-151.0,0.0001599,2]
[339845340,1728058240744,-151.0,0.0001599,2]
[339845342,1728058240753,-151.0,0.0001599,2]
[339845344,1728058240763,-151.0,0.0001599,2]
[339845346,1728058240774,-5274.659002,0.0001599,2]
[339845348,1728058240785,-198.57971086,0.0001599,2]
[339845351,1728058240799,-361.74812792,0.0001599,2]
[339845384,1728058241110,-13102.90301378,0.0001597,2]
[339845386,1728058241119,-4714.33116322,0.0001599,2]
[339845388,1728058241128,-5274.659002,0.0001599,2]
[339845389,1728058241137,-5274.659002,0.0001599,2]
[339845391,1728058241147,-5274.659002,0.0001599,2]
[339845393,1728058241156,-5274.659002,0.0001599,2]
[339845395,1728058241165,-5274.659002,0.0001599,2]
[339845397,1728058241174,-5274.659002,0.0001599,2]
[339845399,1728058241183,-744.97236,0.0001599,2]
[339845401,1728058241192,-744.97236,0.0001599,2]
[339845403,1728058241202,-744.97236,0.0001599,2]
[339845405,1728058241210,-744.97236,0.0001599,2]
[339845407,1728058241221,-744.97236,0.0001599,2]
[339845409,1728058241231,-151.0,0.0001599,2]
[339845411,1728058241240,-151.0,0.0001599,2]
[339845413,1728058241249,-255.47526,0.0001599,2]
[339845415,1728058241258,-744.97236,0.0001599,2]
[339845417,1728058241268,-744.97236,0.0001599,2]
[339845419,1728058241277,-744.97236,0.0001599,2]
[339845421,1728058241286,-744.97236,0.0001599,2]
[339845423,1728058241296,-744.97236,0.0001599,2]
[339845425,1728058241306,-69958.6624655,0.0001599,2]
[339845427,1728058241316,-151.0,0.0001599,2]
[339845429,1728058241325,-151.0,0.0001599,2]
[339845431,1728058241334,-151.0,0.0001599,2]
[339845433,1728058241344,-151.0,0.0001599,2]
[339845435,1728058241353,-151.0,0.0001599,2]
[339845437,1728058241363,-312.661788,0.0001599,2]
[339845438,1728058241372,-312.661788,0.0001599,2]
[339845440,1728058241381,-312.661788,0.0001599,2]
[339845442,1728058241391,-312.661788,0.0001599,2]
[339845444,1728058241401,-151.0,0.0001599,2]
[339845446,1728058241410,-168.6839,0.0001599,2]
[339845448,1728058241419,-312.661788,0.0001599,2]
[339845450,1728058241429,-312.661788,0.0001599,2]
[339845452,1728058241438,-312.661788,0.0001599,2]
[339845454,1728058241449,-312.661788,0.0001599,2]
[339845456,1728058241458,-151.0,0.0001599,2]
[339845458,1728058241469,-151.0,0.0001599,2]
[339845460,1728058241480,-605.1377694,0.0001599,2]
[339845462,1728058241490,-181.265572,0.0001599,2]
[339845464,1728058241501,-181.265572,0.0001599,2]
[339845467,1728058241511,-181.265572,0.0001599,2]
[339845469,1728058241521,-181.265569,0.0001599,2]
[339845471,1728058241530,-151.0,0.0001599,2]
[339845473,1728058241541,-151.0,0.0001599,2]
[339845475,1728058241551,-402.954016,0.0001599,2]
[339845477,1728058241561,-402.954016,0.0001599,2]
[339845479,1728058241570,-402.954016,0.0001599,2]
[339845481,1728058241579,-402.95401635,0.0001599,2]
[339845482,1728058241588,-1313.618755,0.0001599,2]
[339845483,1728058241599,-1313.618755,0.0001599,2]
[339845484,1728058241608,-1313.618755,0.0001599,2]
[339845485,1728058241618,-1313.618764,0.0001599,2]
[339845486,1728058241628,-853.4105391,0.00015994,2]
[339845487,1728058241640,-660.7027747,0.00015994,2]
[339845488,1728058241650,-462.3500497,0.00015994,2]
[339845489,1728058241658,-825.3866751,0.00015994,2]
[339845490,1728058241667,-412.6084831,0.00015994,2]
[339845491,1728058241676,-209.36437782,0.00016,2]
[339845492,1728058241685,-185.0,0.00016,2]
[339845493,1728058241695,-1012.48,0.00016,5]
[339845494,1728058241704,-7738.13107545,0.00016,2]
[339845495,1728058241716,-10368.60058827,0.00016,7]
[339845496,1728058241728,-2005.0,0.00016,2]
[339845497,1728058241737,-22675.12680492,0.00016,5]
[339845545,1728058246282,-209.52019565,0.00013083,2]
[339845546,1728058246292,-207.79181909,0.000159,2]
[339845547,1728058246304,-725.03971491,0.000159,2]
[339845548,1728058246314,-151.617446,0.000159,2]
[339845549,1728058246324,-496.4230918,0.000159,2]
[339845550,1728059184297,-161.327424,0.00012603,2]
[339845551,1728059184320,-157.894736,0.00012905,2]
[339845552,1728059184345,-157.894736,0.00012943,2]
[339845553,1728059184370,-157.894736,0.0001298,2]
[339845554,1728059184393,-157.894736,0.00013017,2]
[339845555,1728059184419,-157.894736,0.00013055,2]
[339845556,1728059184448,-157.894736,0.00013092,2]
[339845557,1728059184471,-157.894736,0.0001313,2]
[339845558,1728059184496,-157.894736,0.00013167,2]
[339845559,1728059184704,-157.894736,0.00013204,2]
[339845560,1728059184728,-157.894736,0.00013242,2]
[339845561,1728059184752,-157.894736,0.00013279,2]
[339845562,1728059184775,-157.894736,0.00013316,2]
[339845563,1728059184797,-300.0,0.00013339,2]
[339845564,1728059184819,-300.0,0.00013339,2]
[339845565,1728059184840,-15036.2762334,0.0001334,2]
[339845566,1728059184863,-157.894736,0.00013354,2]
[339845567,1728059184887,-157.894736,0.00013391,2]
[339845568,1728059184911,-157.894736,0.00013429,2]
[339845569,1728059184934,-157.894736,0.00013466,2]
[339845570,1728059192123,-246.582,0.00012345,2]
[339845589,1728059318140,21196.53525692,0.0001,2]
[339845640,1728059432192,-300.0,0.00012344,2]
[339845643,1728059432205,-300.0,0.00012344,2]
[339845645,1728059432215,-125.88220562,0.00012345,2]
[339845647,1728059432228,-6268.79109952,0.00012345,2]
[339845650,1728059432240,-807.98813339,0.00012345,2]
[339845755,1728059438378,-17450.75656147,0.00012345,2]
[339845756,1728059438388,-161.327424,0.00012603,2]
[339845757,1728059438397,-157.894736,0.00013503,2]
[339845758,1728059438407,-157.894736,0.00013541,2]
[339845759,1728059438417,-420.0,0.00013546,2]
[339845760,1728059438427,-420.0,0.00013578,2]
[339845761,1728059438436,-157.894736,0.00013578,2]
[339845762,1728059438446,-505.294171,0.00013699,2]
[339845763,1728059438456,-227.008194,0.00013699,2]
[339845764,1728059438465,-205.02,0.000143,2]
[339845765,1728059438474,-412.6084831,0.00014356,2]
[339845766,1728059438483,-231.908156,0.00014359,2]
[339845767,1728059438493,-184.933817,0.00014359,2]
[339845768,1728059438502,-505.294171,0.00014384,2]
[339845769,1728059438511,-231.908156,0.00014538,2]
[339845770,1728059438523,-231.908156,0.00014718,2]
[339845771,1728059438532,-184.933817,0.00014718,2]
[339845772,1728059438542,-203.09319034,0.00014865,2]
[339845773,1728059438552,-587.0,0.00014865,2]
[339845774,1728059438562,-231.908156,0.00014897,2]
[339845775,1728059438571,-423.23604847,0.000149,2]
[339845776,1728059438580,-423.23604847,0.000149,2]
[339845777,1728059438590,-423.23604847,0.000149,2]
[339845778,1728059438600,-587.0,0.00014936,2]
[339845779,1728059438609,-176.147,0.00014978,2]
[339845780,1728059438618,-166.2323332,0.00015,2]
[339845781,1728059438632,-160.0,0.00015025,3]
[339845782,1728059438642,-160.0,0.00015025,5]
[339845783,1728059438651,-505.294171,0.00015068,2]
[339845784,1728059438661,-231.908156,0.00015077,2]
[339845785,1728059438670,-184.933817,0.00015077,2]
[339845786,1728059438680,-600.0,0.0001536,2]
[339845787,1728059438690,-355.412081,0.00015817,2]
[339845788,1728059438912,-1000.0,0.000159,2]
[339845789,1728059438923,-1000.0,0.000159,2]
[339845790,1728059438933,-1000.0,0.000159,2]
[339845791,1728059438942,-1000.0,0.000159,2]
[339845792,1728059438951,-1000.0,0.000159,2]
[339845793,1728059438962,-1000.0,0.000159,2]
[339845794,1728059438972,-1000.0,0.000159,2]
[339845795,1728059438982,-1000.0,0.000159,2]
[339845796,1728059438992,-1000.0,0.000159,2]
[339845797,1728059439002,-1000.0,0.000159,2]
[339845798,1728059439012,-1189.24715752,0.000159,2]
[339845799,1728059439022,-3000.0,0.000159,2]
[339845800,1728059439031,-150.0,0.000159,2]
[339845801,1728059439041,-500.0,0.00015973,2]
[339845802,1728059439050,-500.0,0.00015973,2]
[339845803,1728059439060,-161.25279031,0.00015973,2]
[339845804,1728059439069,-500.0,0.00015973,2]
[339845805,1728059439079,-500.0,0.00015973,2]
[339845806,1728059439088,-500.0,0.00015973,2]
[339845807,1728059439097,-10048.2638033,0.00015979,2]
[339845808,1728059439106,-24792.7877038,0.00015979,2]
[339845809,1728059439116,-546.73073308,0.00015989,2]
[339845810,1728059439131,-500.0,0.00015989,2]
[339845811,1728059439140,-500.0,0.00015989,2]
[339845812,1728059439150,-500.0,0.00015989,2]
[339845813,1728059439159,-382.83596404,0.00015989,2]
[339845814,1728059439169,-500.0,0.00015989,2]
[339845815,1728059439179,-20096.5276066,0.0001599,2]
[339845816,1728059439189,-49585.5754076,0.0001599,2]
[339845817,1728059439199,-11113.15400741,0.00015999,2]
[339845818,1728059439209,-642.72616206,0.00016,5]
[339845819,1728059439222,-716.68371583,0.00016,5]
[339845820,1728059439238,-34213.93225463,0.00016,5]
[339845821,1728059439247,-25.61160571,0.00016,2]
[339845822,1728059439283,-17282.2332604,0.00016,2]
[339845823,1728059439295,-1256.38284064,0.00016,2]
[339845855,1728059440405,-11435.76229325,0.00016,2]
[339845857,1728059440416,-1000.0,0.00016,16]
[339845859,1728059440425,-150.112234,0.00016,2]
[339845861,1728059440435,-151.0,0.00016,2]
[339845863,1728059440445,-185.0,0.00016,2]
[339845865,1728059440455,-3000.0,0.00016,2]
[339845867,1728059440464,-162.803257,0.00016,2]
[339845870,1728059440478,-216.80474828,0.00016,2]
[339845872,1728059440488,-10370.24352899,0.00016,7]
[339845874,1728059440498,-10048.2638033,0.00016,2]
[339845875,1728059440508,-24792.7877038,0.00016,2]
[339845877,1728059440519,-3000.0,0.0001601,2]
[339845879,1728059440528,-3000.0,0.0001602,2]
[339845881,1728059440538,-150.0,0.0001602,2]
[339845883,1728059440548,-3000.0,0.0001603,2]
[339845885,1728059440558,-3000.0,0.0001604,2]
[339845887,1728059440567,-3000.0,0.0001605,2]
[339845889,1728059440577,-3000.0,0.0001606,2]
[339845891,1728059440587,-3000.0,0.0001607,2]
[339845893,1728059440596,-3000.0,0.0001608,2]
[339845895,1728059440606,-3000.0,0.0001609,2]
[339845897,1728059440616,-150.112233,0.000161,2]
[339845899,1728059440630,-3000.0,0.000161,2]
[339845901,1728059440639,-150.0,0.00016102,2]
[339845903,1728059440649,-1000.0,0.0001611,2]
[339845905,1728059440659,-502.0085074,0.0001611,2]
[339845907,1728059440668,-3000.0,0.0001611,2]
[339845909,1728059440679,-200.0,0.00016117,3]
[339845911,1728059440690,-3000.0,0.0001612,2]
[339845913,1728059440701,-200.0,0.00016128,3]
[339845915,1728059440710,-3000.0,0.0001613,2]
[339845917,1728059440720,-200.0,0.00016139,3]
[339845919,1728059440729,-3000.0,0.0001614,2]
[339845920,1728059440740,-151.0,0.0001614,2]
[339845922,1728059440750,-151.0,0.0001614,2]
[339845924,1728059440760,-197.865319,0.0001614,2]
[339845926,1728059440769,-151.0,0.0001614,2]
[339845928,1728059440779,-197.865319,0.0001614,2]
[339845930,1728059440789,-312.661788,0.0001614,2]
[339845931,1728059440799,-312.661788,0.0001614,2]
[339845932,1728059440808,-151.0,0.0001614,2]
[339845934,1728059440817,-151.0,0.0001614,2]
[339845936,1728059440827,-200.0,0.0001615,3]
[339845938,1728059440836,-3000.0,0.0001615,2]
[339845940,1728059440846,-10048.2638033,0.0001615,2]
[339845941,1728059440856,-24792.7877038,0.0001615,2]
[339845943,1728059440865,-3000.0,0.0001616,2]
[339845945,1728059440878,-151.0,0.0001616,2]
[339845947,1728059440887,-151.0,0.0001616,2]
[339845949,1728059440897,-151.0,0.0001616,2]
[339845951,1728059440906,-152.915298,0.0001616,2]
[339845952,1728059440915,-151.0,0.0001616,2]
[339845953,1728059440925,-151.0,0.0001616,2]
[339845954,1728059440935,-207.712472,0.0001616,2]
[339845955,1728059440944,-441.25036,0.0001616,2]
[339845956,1728059440954,-441.25036,0.0001616,2]
[339845957,1728059440963,-151.0,0.0001616,2]
[339845958,1728059440973,-274.88947,0.0001616,2]
[339845959,1728059440982,-151.0,0.0001616,2]
[339845960,1728059440992,-167.143429,0.0001616,2]
[339845961,1728059441002,-744.97236,0.0001616,2]
[339845962,1728059441011,-744.97236,0.0001616,2]
[339845963,1728059441021,-151.0,0.0001616,2]
[339845964,1728059441030,-151.0,0.0001616,2]
[339845965,1728059441040,-151.0,0.0001616,2]
[339845966,1728059441049,-910.465198,0.0001616,2]
[339845967,1728059441058,-151.0,0.0001616,2]
[339845968,1728059441068,-910.465198,0.0001616,2]
[339845969,1728059441078,-151.0,0.0001616,2]
[339845970,1728059441089,-4261.671301,0.0001616,2]
[339845971,1728059441098,-4261.671301,0.0001616,2]
[339845972,1728059441108,-4982.90966,0.0001616,2]
[339845973,1728059441117,-4982.90966,0.0001616,2]
[339845974,1728059441129,-200.0,0.00016161,3]
[339845975,1728059441138,-3000.0,0.0001617,2]
[339845976,1728059441148,-9836.47777729,0.0001617,2]
[339845977,1728059441168,-211.78602601,0.0001617,2]
[339845978,1728059441178,-24792.7877038,0.0001617,2]
[339845979,1728059441188,-151.0,0.0001617,2]
[339845980,1728059441199,-151.0,0.0001617,2]
[339845981,1728059441210,-197.865319,0.0001617,2]
[339845982,1728059441220,-151.0,0.0001617,2]
[339845983,1728059441231,-197.865319,0.0001617,2]
[339845984,1728059441243,-312.661788,0.0001617,2]
[339845985,1728059441252,-312.661788,0.0001617,2]
[339845986,1728059441261,-151.0,0.0001617,2]
[339845987,1728059441271,-151.0,0.0001617,2]
[339845988,1728059441282,-151.0,0.0001618,2]
[339845989,1728059441291,-151.0,0.0001618,2]
[339845990,1728059441300,-151.0,0.0001618,2]
[339845991,1728059441310,-151.0,0.0001618,2]
[339845992,1728059441319,-151.0,0.0001618,2]
[339845993,1728059441331,-151.0,0.0001618,2]
[339845994,1728059441340,-151.0,0.0001618,2]
[339845995,1728059441350,-151.0,0.0001618,2]
[339845996,1728059441360,-151.0,0.0001618,2]
[339845997,1728059441375,-167.001228,0.0001618,2]
[339845998,1728059441385,-3000.0,0.0001618,2]
[339845999,1728059441395,-151.0,0.0001618,2]
[339846000,1728059441405,-167.001228,0.0001618,2]
[339846001,1728059441414,-200.0,0.00016184,2]
[339846002,1728059441424,-3000.0,0.0001619,2]
[339846003,1728059441433,-150.112233,0.000162,2]
[339846004,1728059441444,-150.112233,0.000162,2]
[339846005,1728059441455,-150.112233,0.000162,2]
[339846006,1728059441464,-3000.0,0.000162,2]